bitfinex/quotes_BTCUSD_20250614
["timestamp","ask_amount","ask_price","bid_price","bid_amount"]
[1749938322147,0.92646168,105520.0,105510.0,0.44537094]
[1749938322571,0.89980034,105520.0,105510.0,0.44537094]
[1749938322784,0.91090924,105520.0,105510.0,0.44537094]
[1749938322976,0.92646168,105520.0,105510.0,0.44537094]
[1749938323182,0.90868745,105520.0,105510.0,0.44537094]
[1749938323507,0.91757457,105520.0,105510.0,0.44537094]
[1749938323716,0.90868745,105520.0,105510.0,0.44537094]
[1749938323936,0.82364713,105520.0,105510.0,0.45484835]
[1749938324160,0.03796022,105520.0,105510.0,1.19060893]
[1749938324374,0.01129965,105520.0,105510.0,1.2187712]
[1749938324617,0.61408296,105550.0,105540.0,0.25582577]
[1749938324847,0.64196151,105550.0,105540.0,0.45566577]
[1749938325066,0.64196144,105550.0,105540.0,0.45566577]
[1749938325289,0.63248789,105550.0,105540.0,0.45566577]
[1749938325511,0.65025629,105550.0,105540.0,0.45566577]
[1749938325738,0.6330776,105550.0,105540.0,0.45566577]
[1749938325959,0.65025635,105550.0,105540.0,0.48381197]
[1749938326192,0.64137219,105550.0,105540.0,0.48381197]
[1749938326421,0.63248803,105550.0,105540.0,0.48381197]
[1749938326650,0.64137219,105550.0,105540.0,0.48381197]
[1749938326876,0.65025635,105550.0,105540.0,0.48381197]
[1749938327098,0.64137219,105550.0,105540.0,0.55303863]
[1749938327547,0.65025635,105550.0,105540.0,0.55303863]
[1749938327811,0.65025635,105550.0,105540.0,0.48381197]
[1749938328024,0.64137219,105550.0,105540.0,0.48381197]
[1749938328249,0.65025635,105550.0,105540.0,0.48381197]
[1749938328490,0.64078265,105550.0,105540.0,0.48381197]
[1749938328712,0.65025597,105550.0,105540.0,0.48381197]
[1749938328961,0.65025584,105550.0,105540.0,0.48381197]
[1749938329415,0.64137183,105550.0,105540.0,0.48381197]
[1749938329636,0.62360378,105550.0,105540.0,0.48381197]
[1749938329852,0.63248775,105550.0,105540.0,0.48381197]
[1749938330063,0.62360378,105550.0,105540.0,0.48381197]
[1749938330298,0.64137173,105550.0,105540.0,0.48381197]
[1749938330753,0.63248775,105550.0,105540.0,0.48381197]
[1749938330968,0.65025569,105550.0,105540.0,0.48381197]
[1749938331189,0.63248775,105550.0,105540.0,0.48681197]
[1749938331408,0.65025569,105550.0,105540.0,0.48681197]
[1749938331650,0.62360378,105550.0,105540.0,0.48981197]
[1749938332156,0.65028198,105550.0,105540.0,0.48981197]
[1749938332387,0.01557487,105550.0,105540.0,0.58596119]
[1749938332645,0.64080861,105550.0,105540.0,0.58596119]
[1749938332861,0.65028205,105550.0,105540.0,0.48981197]
[1749938333088,0.6502818,105550.0,105540.0,0.48981197]
[1749938333312,0.64138919,105550.0,105540.0,0.48981197]
[1749938333526,0.63249652,105550.0,105540.0,0.48981197]
[1749938333739,0.64138919,105550.0,105540.0,0.48981197]
[1749938334165,0.65028185,105550.0,105540.0,0.48981197]
[1749938334398,0.64080839,105550.0,105540.0,0.48981197]
[1749938334619,0.6413892,105550.0,105540.0,0.58596119]
[1749938334848,0.64138921,105550.0,105540.0,0.58596119]
[1749938335064,0.62360387,105550.0,105540.0,0.58596119]
[1749938335300,0.63249644,105550.0,105540.0,0.48981197]
[1749938335576,0.64138896,105550.0,105540.0,0.48981197]
[1749938335792,0.0161556,105550.0,105540.0,0.48981197]
[1749938335997,0.63049643,105550.0,105540.0,0.48981197]
[1749938336200,0.62586174,105550.0,105540.0,0.48981197]
[1749938336404,0.64364687,105550.0,105540.0,0.48981197]
[1749938336632,0.02672514,105550.0,105540.0,0.48981197]
[1749938336865,0.00894009,105550.0,105540.0,0.48981197]
[1749938337087,0.00894009,105550.0,105540.0,1.19340946]
[1749938337088,0.00894005,105550.0,105540.0,1.19340946]
[1749938337317,4.745e-05,105550.0,105540.0,0.58596119]
[1749938337543,0.01778485,105560.0,105550.0,0.25570511]
[1749938337773,0.04613651,105600.0,105580.0,0.23670067]
[1749938337989,0.08687891,105600.0,105590.0,0.41346256]
[1749938338239,1.07113551,105600.0,105590.0,0.41346265]
[1749938338468,0.05281921,105600.0,105590.0,1.12658264]
[1749938338677,0.05281921,105600.0,105590.0,0.36133437]
[1749938338678,0.0350426,105600.0,105590.0,0.36133437]
[1749938338891,0.0350426,105600.0,105590.0,0.56105437]
[1749938338892,0.0300899,105600.0,105590.0,0.56105437]
[1749938339962,0.0300899,105600.0,105590.0,1.09975325]
[1749938340406,0.0300899,105600.0,105590.0,0.56105437]
[1749938340629,0.0300899,105600.0,105590.0,0.90003325]
[1749938340861,0.0300899,105600.0,105590.0,1.19590247]
[1749938341297,0.0300899,105600.0,105590.0,0.56105437]
[1749938341514,0.0300899,105600.0,105590.0,1.09975325]
[1749938341974,0.0300899,105600.0,105590.0,0.56105437]
[1749938342410,0.51277418,105620.0,105610.0,0.25778132]
[1749938342620,0.51277418,105620.0,105610.0,0.41554132]
[1749938342831,0.51277418,105620.0,105610.0,0.45742132]
[1749938343050,0.0334143,105630.0,105620.0,0.25776096]
[1749938343308,0.54365018,105630.0,105620.0,0.26722823]
[1749938343522,0.54365018,105630.0,105620.0,0.36346999]
[1749938343732,0.0049513,105630.0,105620.0,0.52122999]
[1749938343959,1.61287024,105720.0,105620.0,0.52122999]
[1749938344174,0.55810432,105640.0,105630.0,0.44099405]
[1749938344386,0.53917291,105640.0,105630.0,0.45992742]
[1749938344628,0.00047403,105640.0,105630.0,0.5593938]
[1749938345050,0.00047403,105640.0,105630.0,0.8542938]
[1749938346119,0.5054915,105650.0,105640.0,0.23878815]
[1749938346323,0.51509823,105650.0,105640.0,0.23878824]
[1749938346528,0.03800074,105650.0,105640.0,0.24825417]
[1749938346756,0.55777001,105650.0,105640.0,0.25771992]
[1749938346976,0.57669953,105650.0,105640.0,0.25772001]
[1749938347232,0.91669953,105650.0,105640.0,0.24825417]
[1749938347457,0.92616447,105650.0,105640.0,0.24825417]
[1749938347695,0.38746622,105650.0,105640.0,0.23878824]
[1749938347935,0.9261651,105650.0,105640.0,0.24825417]
[1749938348153,0.38746622,105650.0,105640.0,0.24825417]
[1749938348379,0.38746622,105650.0,105640.0,0.26760458]
[1749938348703,0.37800119,105650.0,105640.0,0.27707051]
[1749938348917,0.37800119,105650.0,105640.0,0.25813856]
[1749938348918,1.10341024,105650.0,105640.0,0.25813856]
[1749938349138,1.09394512,105650.0,105640.0,0.39646824]
[1749938349388,1.32107884,105650.0,105640.0,0.04]
[1749938349600,0.36839653,105640.0,105630.0,0.58880714]
[1749938349824,1.0930349,105640.0,105630.0,0.76542069]
[1749938350040,1.08434046,105640.0,105630.0,0.74648714]
[1749938350251,1.09380639,105640.0,105630.0,0.75595405]
[1749938350453,1.31121562,105640.0,105630.0,0.39]
[1749938350668,1.28312933,105640.0,105630.0,0.3699]
[1749938350908,1.36043986,105640.0,105630.0,0.2949]
[1749938351148,0.21776033,105620.0,105610.0,0.0398]
[1749938351389,1.27572179,105620.0,105610.0,0.075]
[1749938351592,0.01893688,105610.0,105590.0,0.29815206]
[1749938351814,0.01893821,105600.0,105590.0,0.1148]
[1749938352041,0.17692261,105600.0,105590.0,0.4097]
[1749938352300,0.32960072,105600.0,105590.0,0.2949]
[1749938352515,0.34071287,105600.0,105590.0,0.3699]
[1749938352725,0.34071287,105600.0,105590.0,0.45254]
[1749938352726,0.13962743,105600.0,105590.0,0.45254]
[1749938352933,0.12184811,105600.0,105590.0,0.52801403]
[1749938353145,1.05385494,105600.0,105590.0,0.45301403]
[1749938353373,1.47222485,105600.0,105590.0,0.00047403]
[1749938353579,1.46555772,105600.0,105590.0,0.00047403]
[1749938353796,1.48111525,105600.0,105590.0,0.15811403]
[1749938354019,1.50454603,105600.0,105590.0,0.15811403]
[1749938354236,1.50454611,105600.0,105590.0,0.23611403]
[1749938354442,1.50454644,105600.0,105590.0,0.00347403]
[1749938354658,1.48898945,105600.0,105590.0,0.00347403]
[1749938354893,1.26429626,105590.0,105580.0,0.15061794]
[1749938355109,0.0189436,105570.0,105560.0,0.12489122]
[1749938355318,0.03788791,105570.0,105560.0,0.40839302]
[1749938355526,0.04339578,105570.0,105560.0,0.56603311]
[1749938355744,1.38783291,105570.0,105560.0,0.11550784]
[1749938355946,1.40846502,105570.0,105560.0,8.99e-05]
[1749938356184,1.50905355,105570.0,105560.0,8.99e-05]
[1749938356396,1.77310317,105570.0,105560.0,8.99e-05]
[1749938356608,1.96421013,105570.0,105560.0,0.0030899]
[1749938356819,1.97310387,105570.0,105560.0,0.0030899]
[1749938357034,0.20843138,105550.0,105540.0,0.0944]
[1749938357240,0.33802507,105550.0,105540.0,0.25204]
[1749938357546,0.31356701,105550.0,105540.0,0.17704]
[1749938357762,0.32913158,105550.0,105540.0,0.25204]
[1749938357963,0.70638987,105550.0,105540.0,0.0194]
[1749938358170,1.39749225,105550.0,105540.0,0.15764]
[1749938358377,1.40638754,105550.0,105540.0,0.15764]
[1749938358588,0.45480703,105550.0,105540.0,0.19897651]
[1749938358809,0.49272757,105550.0,105540.0,0.40589159]
[1749938359013,0.49495087,105550.0,105540.0,0.41536622]
[1749938359220,0.5294625,105550.0,105540.0,0.40589159]
[1749938359425,0.5294625,105550.0,105540.0,0.4153664]
[1749938359426,0.53835597,105550.0,105540.0,0.4153664]
[1749938359638,0.53835583,105550.0,105540.0,0.41536631]
[1749938359855,0.53004284,105550.0,105540.0,0.41536658]
[1749938360094,0.61978107,105550.0,105540.0,0.40589168]
[1749938360300,0.59310077,105550.0,105540.0,0.40589168]
[1749938360511,0.61030876,105550.0,105540.0,0.39641669]
[1749938360734,0.77137087,105550.0,105540.0,0.0398]
[1749938360947,0.77137175,105550.0,105540.0,0.19748]
[1749938361174,0.77137171,105550.0,105540.0,0.19748]
[1749938361394,0.76247818,105550.0,105540.0,0.19748]
[1749938361610,0.76247795,105550.0,105540.0,0.19748]
[1749938361819,0.74468966,105550.0,105540.0,0.45258]
[1749938362021,0.76247814,105550.0,105540.0,0.45258]
[1749938362242,0.73801905,105550.0,105540.0,0.45258]
[1749938362447,0.69275075,105550.0,105540.0,0.45258]
[1749938362891,0.69942148,105550.0,105540.0,0.45258]
[1749938363227,0.69052718,105550.0,105540.0,0.45258]
[1749938363446,0.69942148,105550.0,105540.0,0.45258]
[1749938363766,0.6994215,105550.0,105540.0,0.45258]
[1749938363987,0.76888779,105550.0,105540.0,0.45258]
[1749938364171,0.78889999,105550.0,105540.0,0.2949]
[1749938364365,0.81011157,105550.0,105540.0,0.2949]
[1749938364588,0.81011181,105550.0,105540.0,0.45258]
[1749938364791,0.78565235,105550.0,105540.0,0.45258]
[1749938365034,0.81011211,105550.0,105540.0,0.2949]
[1749938365238,0.77675791,105550.0,105540.0,0.45258]
[1749938365448,0.79454698,105550.0,105540.0,0.45258]
[1749938365657,0.79675791,105550.0,105540.0,0.2949]
[1749938365866,1.5578165,105550.0,105540.0,0.45258]
[1749938366431,0.79675791,105550.0,105540.0,0.45258]
[1749938366865,0.21794666,105530.0,105520.0,0.4076]
[1749938367071,0.31418842,105530.0,105520.0,0.16720432]
[1749938367278,0.31418842,105530.0,105520.0,0.15772745]
[1749938367480,0.31418842,105530.0,105520.0,0.16720432]
[1749938367634,0.36455887,105530.0,105520.0,0.16720432]
[1749938367882,0.36455887,105530.0,105520.0,0.15772745]
[1749938368068,0.37550116,105530.0,105520.0,0.15772745]
[1749938368251,0.37550116,105530.0,105520.0,0.15972745]
[1749938368454,0.37550116,105530.0,105520.0,0.16920432]
[1749938368656,0.37550116,105530.0,105520.0,0.15972745]
[1749938369059,0.37550116,105530.0,105520.0,0.16172745]
[1749938369512,0.35655003,105530.0,105520.0,0.16172745]
[1749938369727,0.35655003,105530.0,105520.0,0.15972745]
[1749938369928,0.35655003,105530.0,105520.0,0.16072745]
[1749938370140,0.35655003,105530.0,105520.0,0.15872745]
[1749938370625,0.34707406,105530.0,105520.0,0.15872745]
[1749938370874,0.35596955,105530.0,105520.0,0.15872745]
[1749938371099,0.38043214,105530.0,105520.0,0.15872745]
[1749938371375,0.37376053,105530.0,105520.0,0.15872745]
[1749938371595,0.35374567,105530.0,105520.0,0.15872745]
[1749938371832,0.37153666,105530.0,105520.0,0.15872745]
[1749938372488,0.37153667,105530.0,105520.0,0.15872745]
[1749938373207,0.36486501,105530.0,105520.0,0.15872745]
[1749938373720,0.37153662,105530.0,105520.0,0.15872745]
[1749938373956,0.35374567,105530.0,105520.0,0.15872745]
[1749938374195,0.34707406,105530.0,105520.0,0.15872745]
[1749938374430,0.37153663,105530.0,105520.0,0.15872745]
[1749938374643,0.34707406,105530.0,105520.0,0.15872745]
[1749938374866,0.35374568,105530.0,105520.0,0.15872745]
[1749938375106,0.37153667,105530.0,105520.0,0.15872745]
[1749938375332,0.35374568,105530.0,105520.0,0.15872745]
[1749938375556,0.37153666,105530.0,105520.0,0.15872745]
[1749938375785,0.35374567,105530.0,105520.0,0.15872745]
[1749938376447,0.34707406,105530.0,105520.0,0.15872745]
[1749938376679,0.37153664,105530.0,105520.0,0.15872745]
[1749938377780,0.36486503,105530.0,105520.0,0.15872745]
[1749938378005,0.34707406,105530.0,105520.0,0.15872745]
[1749938378215,0.37153667,105530.0,105520.0,0.15872745]
[1749938379240,0.36486505,105530.0,105520.0,0.15872745]
[1749938379457,0.35374568,105530.0,105520.0,0.15872745]
[1749938379666,0.34707406,105530.0,105520.0,0.15872745]
[1749938379844,0.37153667,105530.0,105520.0,0.15872745]
[1749938380266,0.35374568,105530.0,105520.0,0.15872745]
[1749938380472,0.36486505,105530.0,105520.0,0.15872745]
[1749938380680,0.37153667,105530.0,105520.0,0.15872745]
[1749938381081,0.35374568,105530.0,105520.0,0.15872745]
[1749938381313,0.36486505,105530.0,105520.0,0.15872745]
[1749938381517,0.37153667,105530.0,105520.0,0.15872745]
[1749938381723,0.36486505,105530.0,105520.0,0.15872745]
[1749938381903,0.35374568,105530.0,105520.0,0.15872745]
[1749938382152,0.71153668,105530.0,105520.0,0.00104745]
[1749938382362,0.68707406,105530.0,105520.0,0.15872745]
[1749938382600,0.69374573,105530.0,105520.0,0.15872745]
[1749938382795,0.69374574,105530.0,105520.0,0.15872745]
[1749938383050,0.70486522,105530.0,105520.0,0.15872745]
[1749938383263,0.69374574,105530.0,105520.0,0.15872745]
[1749938383663,0.7115369,105530.0,105520.0,0.15872745]
[1749938384406,1.41120577,105530.0,105520.0,0.00104745]
[1749938384698,1.44353791,105530.0,105520.0,0.00104745]
[1749938384907,1.59228999,105530.0,105520.0,0.15872745]
[1749938385123,1.60451772,105530.0,105520.0,0.15872745]
[1749938385334,1.61119154,105530.0,105520.0,0.00104745]
[1749938385555,1.63006314,105530.0,105520.0,0.15772745]
[1749938385763,1.62998769,105530.0,105520.0,0.15768745]
[1749938385966,1.62534372,105530.0,105520.0,4.745e-05]
[1749938386177,1.60762643,105530.0,105520.0,4.745e-05]
[1749938386386,1.85198846,105530.0,105520.0,4.745e-05]
[1749938386584,2.05598893,105530.0,105520.0,4.745e-05]
[1749938386815,2.04934541,105530.0,105520.0,4.745e-05]
[1749938387034,2.05599037,105530.0,105520.0,4.745e-05]
[1749938387243,2.05599046,105530.0,105520.0,4.745e-05]
[1749938387539,0.20854967,105490.0,105480.0,0.35406636]
[1749938387816,1.33067401,105490.0,105480.0,0.11321794]
[1749938388049,1.45640006,105490.0,105480.0,0.27085794]
[1749938388300,1.48076781,105490.0,105480.0,0.27085794]
[1749938388549,1.48076781,105490.0,105470.0,0.66509945]
[1749938388550,1.56088434,105490.0,105470.0,0.66509945]
[1749938388778,0.21805009,105480.0,105470.0,0.38237836]
[1749938389007,0.33201006,105480.0,105470.0,0.29149211]
[1749938389220,0.33201006,105480.0,105470.0,0.31045474]
[1749938389450,0.33201006,105480.0,105470.0,0.29153211]
[1749938389703,0.33201006,105480.0,105470.0,0.16229592]
[1749938389914,0.14240066,105480.0,105470.0,0.5096033]
[1749938390140,0.14240066,105480.0,105470.0,0.3519233]
[1749938390386,0.14240066,105480.0,105470.0,0.5250843]
[1749938390856,0.39597012,105480.0,105470.0,0.5156033]
[1749938391072,0.20636072,105480.0,105470.0,0.52508439]
[1749938391282,0.20636072,105480.0,105470.0,0.52608439]
[1749938391490,0.20636072,105480.0,105470.0,0.5355653]
[1749938391698,0.4344285,105480.0,105470.0,0.49764067]
[1749938391912,0.4344285,105480.0,105470.0,0.30701347]
[1749938392119,0.4344285,105480.0,105470.0,0.50812203]
[1749938392327,0.17137812,105480.0,105470.0,0.51760276]
[1749938392532,0.37046799,105480.0,105470.0,0.50812194]
[1749938392741,0.37046799,105480.0,105470.0,0.51760303]
[1749938392951,0.37046799,105480.0,105470.0,0.51760312]
[1749938393209,0.1808585,105480.0,105470.0,0.52708403]
[1749938393637,0.1808585,105480.0,105470.0,0.53656485]
[1749938393839,0.19033897,105480.0,105470.0,0.52708403]
[1749938394044,0.1808585,105480.0,105470.0,0.53656485]
[1749938395375,0.1808585,105480.0,105470.0,0.53656494]
[1749938395843,0.1808585,105480.0,105470.0,0.53656431]
[1749938396543,0.18085841,105480.0,105470.0,0.53656431]
[1749938398747,0.15241799,105480.0,105470.0,1.35017356]
[1749938398952,0.12344008,105480.0,105470.0,1.30402434]
[1749938399162,0.12344008,105480.0,105470.0,1.32652556]
[1749938399396,0.12344008,105480.0,105470.0,1.42276732]
[1749938399612,0.12344008,105480.0,105470.0,1.51891654]
[1749938400458,0.12344008,105480.0,105470.0,1.42276732]
[1749938400901,0.12344008,105480.0,105470.0,1.45096258]
[1749938401334,0.07164008,105480.0,105470.0,1.84430999]
[1749938401548,0.08952347,105530.0,105520.0,0.21796705]
[1749938401763,0.13087339,105530.0,105520.0,0.37560705]
[1749938401984,0.0567206,105540.0,105530.0,0.21794639]
[1749938402217,0.00667179,105540.0,105530.0,0.21794639]
[1749938402432,0.07292052,105550.0,105540.0,0.21792604]
[1749938402649,0.1536299,105550.0,105540.0,0.38504058]
[1749938402855,0.15377186,105550.0,105540.0,0.38504058]
[1749938403064,0.49377186,105550.0,105540.0,0.38504058]
[1749938403315,0.51210695,105550.0,105540.0,0.38504058]
[1749938403538,0.51210676,105550.0,105540.0,0.38504058]
[1749938403750,0.49315887,105550.0,105540.0,0.38704058]
[1749938403971,0.50263273,105550.0,105540.0,0.38704058]
[1749938404193,0.16263273,105550.0,105540.0,0.38704058]
[1749938404408,0.16463269,105550.0,105540.0,0.38704058]
[1749938404619,0.50463269,105550.0,105540.0,0.38704058]
[1749938405055,0.49515896,105550.0,105540.0,0.38704058]
[1749938405271,0.50401964,105550.0,105540.0,0.38704058]
[1749938405478,1.50744666,105550.0,105540.0,0.35861669]
[1749938405692,0.79026583,105550.0,105540.0,0.3680915]
[1749938405875,0.79912675,105550.0,105540.0,0.37756622]
[1749938406114,0.79912679,105550.0,105540.0,0.3680915]
[1749938406324,0.79912679,105550.0,105540.0,0.37756613]
[1749938406535,0.8057727,105550.0,105540.0,0.37756622]
[1749938406745,0.79912694,105550.0,105540.0,0.37756622]
[1749938406954,0.80577275,105550.0,105540.0,0.37756622]
[1749938407170,0.80577275,105550.0,105540.0,0.3680915]
[1749938407380,0.78079228,105550.0,105540.0,0.35857669]
[1749938407587,0.71564306,105550.0,105540.0,0.37752649]
[1749938407798,0.73115,105550.0,105540.0,0.37752649]
[1749938408008,0.70015,105550.0,105540.0,0.37752649]
[1749938408223,0.7112264,105550.0,105540.0,0.37752649]
[1749938408436,0.70015,105550.0,105540.0,0.37752649]
[1749938408858,0.69067618,105550.0,105540.0,0.37752649]
[1749938409073,0.69953732,105550.0,105540.0,0.37752649]
[1749938409297,0.70839844,105550.0,105540.0,0.37752649]
[1749938409505,0.71335209,105550.0,105540.0,0.44017863]
[1749938409753,0.54281626,105550.0,105540.0,0.45997575]
[1749938409978,0.53617002,105550.0,105540.0,0.38700067]
[1749938410203,0.53616904,105550.0,105540.0,0.38700067]
[1749938410419,0.51844777,105550.0,105540.0,0.39647512]
[1749938410633,0.53616952,105550.0,105540.0,0.37752613]
[1749938410880,0.40064508,105550.0,105540.0,0.39647521]
[1749938411105,0.40064459,105550.0,105540.0,0.39647521]
[1749938411321,0.40125701,105550.0,105540.0,0.46047521]
[1749938411500,0.41073017,105550.0,105540.0,0.46047521]
[1749938411714,0.00014205,105550.0,105540.0,1.51352366]
[1749938412808,0.00014205,105550.0,105540.0,1.54705451]
[1749938413021,0.00014205,105550.0,105540.0,1.52606451]
[1749938413227,0.00014205,105550.0,105540.0,1.554463]
[1749938413461,0.00014205,105550.0,105540.0,1.56244845]
[1749938414717,0.00014205,105550.0,105540.0,1.6194914]
[1749938415125,0.00014205,105550.0,105540.0,1.56244845]
[1749938415334,0.00014205,105550.0,105540.0,1.60412845]
[1749938415747,0.00014205,105550.0,105540.0,1.58174451]
[1749938415957,0.00014205,105550.0,105540.0,1.38246451]
[1749938416176,0.00014205,105550.0,105540.0,1.30684657]
[1749938416384,0.00014205,105550.0,105540.0,1.43604709]
[1749938417216,0.00014205,105550.0,105540.0,1.23684709]
[1749938417435,0.00014205,105550.0,105540.0,1.43604709]
[1749938420894,0.00014205,105550.0,105540.0,1.23684709]
[1749938421105,0.00014205,105550.0,105540.0,1.43604709]
[1749938421333,0.00014205,105550.0,105540.0,1.53219631]
[1749938423215,0.00014205,105550.0,105540.0,2.16769222]
[1749938423422,0.00014205,105550.0,105540.0,1.99699935]
[1749938423652,0.00014205,105550.0,105540.0,2.16765222]
[1749938424485,0.00014205,105550.0,105540.0,1.96849222]
[1749938424692,0.00014205,105550.0,105540.0,2.16765222]
[1749938425749,0.00014205,105550.0,105540.0,2.19575501]
[1749938428037,0.00014205,105550.0,105540.0,2.2332497]
[1749938428681,0.00014205,105550.0,105540.0,2.20514691]
[1749938429718,0.00014205,105550.0,105540.0,2.26138895]
[1749938430339,0.00014205,105550.0,105540.0,2.06222895]
[1749938430545,0.00014205,105550.0,105540.0,2.26134895]
[1749938431800,0.00014205,105550.0,105540.0,2.02473426]
[1749938432013,0.00014205,105550.0,105540.0,2.22385426]
[1749938432224,0.00014205,105550.0,105540.0,1.30522499]
[1749938432431,0.00014205,105550.0,105540.0,1.96599808]
[1749938432644,0.00014205,105550.0,105540.0,0.86086592]
[1749938432855,0.00014205,105550.0,105540.0,1.74782643]
[1749938433061,0.00014205,105550.0,105540.0,1.40782643]
[1749938433490,0.00014205,105550.0,105540.0,1.20870643]
[1749938433697,0.00014205,105550.0,105540.0,1.20070643]
[1749938433939,0.00014205,105550.0,105540.0,1.19970643]
[1749938434144,0.00014205,105550.0,105540.0,1.20470643]
[1749938434354,0.00014205,105550.0,105540.0,1.49997565]
[1749938435611,0.00014205,105550.0,105540.0,1.20470643]
[1749938435815,0.00014205,105550.0,105540.0,1.40382643]
[1749938436647,0.00014205,105550.0,105540.0,0.64263716]
[1749938436859,0.03264205,105550.0,105540.0,0.43519716]
[1749938437072,0.06444205,105550.0,105540.0,0.5463954]
[1749938437283,0.06444205,105550.0,105540.0,0.51833112]
[1749938438168,0.06444205,105550.0,105540.0,0.31921112]
[1749938438375,0.06444205,105550.0,105540.0,0.51833112]
[1749938440507,0.06444205,105550.0,105540.0,0.36089112]
[1749938440764,0.06444205,105550.0,105540.0,0.51833112]
[1749938441424,0.06444205,105550.0,105540.0,0.5463954]
[1749938442261,0.0822262,105550.0,105540.0,0.36089112]
[1749938442471,0.10001114,105550.0,105540.0,0.51833112]
[1749938442675,0.10001193,105550.0,105540.0,0.51833112]
[1749938442882,0.10001202,105550.0,105540.0,0.51833112]
[1749938443112,0.09111942,105550.0,105540.0,0.51833112]
[1749938443329,0.10001187,105550.0,105540.0,0.51833112]
[1749938443534,0.1000119,105550.0,105540.0,0.51833112]
[1749938443745,0.07333452,105550.0,105540.0,0.51833112]
[1749938443928,0.10001194,105550.0,105540.0,0.51833112]
[1749938444159,0.10001184,105550.0,105540.0,0.51833112]
[1749938444366,0.10001182,105550.0,105540.0,0.51833112]
[1749938444570,0.21334486,105570.0,105560.0,0.20841181]
[1749938444775,0.22001421,105570.0,105560.0,0.36585181]
[1749938444979,0.21334486,105570.0,105560.0,0.36585181]
[1749938445199,0.22001419,105570.0,105560.0,0.37532455]
[1749938445405,0.21334486,105570.0,105560.0,0.37532455]
[1749938445610,0.93033741,105570.0,105560.0,0.37532455]
[1749938446058,0.93700672,105570.0,105560.0,0.37532455]
[1749938446290,0.74755894,105570.0,105560.0,0.38479738]
[1749938446536,1.03324842,105570.0,105560.0,0.37532464]
[1749938446748,1.03324843,105570.0,105560.0,0.37832464]
[1749938446952,1.04727597,105570.0,105560.0,0.37832464]
[1749938447204,1.03324843,105570.0,105560.0,0.36885181]
[1749938447668,1.08877642,105570.0,105560.0,0.003]
[1749938447895,1.08877642,105570.0,105560.0,0.16044]
[1749938448139,1.42877663,105570.0,105560.0,0.003]
[1749938448358,1.52492601,105570.0,105560.0,0.15844]
[1749938448790,1.52492602,105570.0,105560.0,0.001]
[1749938449047,1.52492602,105570.0,105560.0,0.15844]
[1749938449048,1.75946687,105570.0,105560.0,0.15844]
[1749938449255,1.75946698,105570.0,105560.0,0.15844]
[1749938449461,1.75946698,105570.0,105560.0,0.15744]
[1749938449672,1.75679708,105570.0,105560.0,0.15744]
[1749938449884,1.76346698,105570.0,105560.0,0.15744]
[1749938450089,1.75946698,105570.0,105560.0,0.15744]
[1749938450529,1.75979708,105570.0,105560.0,0.15744]
[1749938450716,0.26393898,105560.0,105550.0,0.00947418]
[1749938450934,1.17332251,105560.0,105550.0,0.17638827]
[1749938451141,0.45632996,105560.0,105550.0,0.17638827]
[1749938451352,1.17999252,105560.0,105550.0,0.17638827]
[1749938452217,1.17999252,105560.0,105550.0,0.36587192]
[1749938452433,1.17999252,105560.0,105550.0,0.20843192]
[1749938452641,1.17999252,105560.0,105550.0,0.36587192]
[1749938452859,1.18099252,105560.0,105550.0,0.36587192]
[1749938453282,1.18399252,105560.0,105550.0,0.36587192]
[1749938453957,1.17732251,105560.0,105550.0,0.36587192]
[1749938454170,1.17732251,105560.0,105550.0,0.16691418]
[1749938454376,1.18399254,105560.0,105550.0,0.36587192]
[1749938454579,1.17732251,105560.0,105550.0,0.36587192]
[1749938454796,1.18399256,105560.0,105550.0,0.36587192]
[1749938455009,1.17732251,105560.0,105550.0,0.36587192]
[1749938455461,1.18399256,105560.0,105550.0,0.36587192]
[1749938455674,1.18399256,105560.0,105550.0,0.20843192]
[1749938455883,0.2730312,105550.0,105540.0,0.21792622]
[1749938456105,0.9768247,105550.0,105540.0,0.38484076]
[1749938456319,1.16630898,105550.0,105540.0,0.2084515]
[1749938456603,1.16630898,105550.0,105540.0,0.37536613]
[1749938456834,1.17126221,105550.0,105540.0,0.38484067]
[1749938457042,1.17126221,105550.0,105540.0,0.39431512]
[1749938457258,0.45526966,105550.0,105540.0,0.39431512]
[1749938457464,0.26578601,105550.0,105540.0,0.39431512]
[1749938457898,0.1,105530.0,105520.0,0.07561794]
[1749938458116,1.15699255,105530.0,105520.0,0.27483999]
[1749938458333,1.15699255,105530.0,105520.0,0.46434705]
[1749938458549,1.15699255,105530.0,105520.0,0.4832998]
[1749938459197,1.16646772,105530.0,105520.0,0.4862998]
[1749938459408,1.16646772,105530.0,105520.0,0.48930034]
[1749938459617,1.15699255,105530.0,105520.0,0.42315864]
[1749938459827,1.15699255,105530.0,105520.0,0.38147864]
[1749938460252,1.15699255,105530.0,105520.0,0.3720024]
[1749938460480,1.18541885,105530.0,105520.0,0.16354205]
[1749938460683,1.41691429,105530.0,105520.0,0.16354205]
[1749938461592,1.39796369,105530.0,105520.0,0.00614205]
[1749938461860,1.62035467,105530.0,105520.0,0.16358205]
[1749938462321,1.62035467,105530.0,105520.0,0.00614205]
[1749938462554,1.62035467,105530.0,105520.0,0.16054205]
[1749938462788,1.62135467,105530.0,105520.0,0.00014205]
[1749938463012,1.62135467,105530.0,105520.0,0.15754205]
[1749938463241,1.62435467,105530.0,105520.0,0.00014205]
[1749938463503,1.63102695,105530.0,105520.0,0.15754205]
[1749938463733,1.62435467,105530.0,105520.0,0.15754205]
[1749938463963,1.63102706,105530.0,105520.0,0.15754205]
[1749938464194,0.65102069,105520.0,105510.0,0.15744]
[1749938464456,1.42468563,105520.0,105510.0,0.15744]
[1749938464672,0.7859471,105510.0,105500.0,0.1990518]
[1749938464890,0.8359471,105510.0,105500.0,0.36597029]
[1749938465116,0.8359471,105510.0,105500.0,0.37544869]
[1749938465552,0.84542469,105510.0,105500.0,0.3564918]
[1749938465781,0.8359471,105510.0,105500.0,0.3564918]
[1749938465990,0.8359471,105510.0,105500.0,0.36597029]
[1749938466200,0.8359471,105510.0,105500.0,0.3679702]
[1749938466410,0.8359471,105510.0,105500.0,0.3584918]
[1749938466618,0.8359471,105510.0,105500.0,0.37744869]
[1749938466826,0.8359471,105510.0,105500.0,0.37844869]
[1749938467249,0.83594701,105510.0,105500.0,0.37844869]
[1749938467452,0.83594701,105510.0,105500.0,0.387927]
[1749938467679,0.84542451,105510.0,105500.0,0.37844869]
[1749938467896,0.85490219,105510.0,105500.0,0.16044]
[1749938468113,1.12727547,105510.0,105500.0,0.16044]
[1749938468544,1.13394791,105510.0,105500.0,0.16044]
[1749938468768,1.133948,105510.0,105500.0,0.16044]
[1749938468976,1.12727547,105510.0,105500.0,0.16044]
[1749938469404,1.4644707,105510.0,105500.0,0.003]
[1749938469622,1.49667098,105510.0,105500.0,0.003]
[1749938469840,1.48999815,105510.0,105500.0,0.003]
[1749938470056,1.49667109,105510.0,105500.0,0.003]
[1749938470264,1.48999815,105510.0,105500.0,0.003]
[1749938470468,1.48999815,105510.0,105500.0,0.002]
[1749938470678,1.4966711,105510.0,105500.0,0.002]